Workbook

Sheet Список покупок
M1: =расчеты!M9 -> МОЛОЧНЫЕ ПРОДУКТЫ ИТОГО
B2: Список покупок
C3: Сделано | D3: НАИМЕНОВАНИЕ | E3: МАГАЗИН | F3: КАТЕГОРИЯ | G3: КОЛ-ВО | H3: ЕДИНИЦА | I3: ЦЕНА ЗА ЕДИНИЦУ | J3: ИТОГО | K3: ПРИМЕЧАНИЕ | M3: =расчеты!L9 -> 37
C4: 1 | D4: Апельсины | E4: Продовольственный | F4: Фрукты и овощи | G4: 2 | H4: кг | I4: 2.99 ₽ | J4: =IFERROR(Список[КОЛ-ВО]*Список[ЦЕНА ЗА ЕДИНИЦУ],"") -> 5.98 ₽ | M4: =расчеты!M8 -> ФРУКТЫ И ОВОЩИ ИТОГО
D5: Яблоки | E5: Фермерский сад | F5: Фрукты и овощи | G5: 3 | H5: кг | I5: 1.99 ₽ | J5: =IFERROR(Список[КОЛ-ВО]*Список[ЦЕНА ЗА ЕДИНИЦУ],"") -> 5.97 ₽ | K5: Есть купон | M5: =расчеты!L8 -> 45
D6: Бананы | E6: Продовольственный | F6: Фрукты и овощи | G6: 1 | H6: гроздь | I6: 3.99 ₽ | J6: =IFERROR(Список[КОЛ-ВО]*Список[ЦЕНА ЗА ЕДИНИЦУ],"") -> 3.99 ₽
D7: Салат | E7: Рынок | F7: Фрукты и овощи | G7: 2 | H7: кочан | I7: 2.29 ₽ | J7: =IFERROR(Список[КОЛ-ВО]*Список[ЦЕНА ЗА ЕДИНИЦУ],"") -> 4.58 ₽ | M7: =расчеты!M7 -> МЯСО ИТОГО
D8: Помидоры | E8: Рынок | F8: Фрукты и овощи | G8: 4 | H8: кг | I8: 3.49 ₽ | J8: =IFERROR(Список[КОЛ-ВО]*Список[ЦЕНА ЗА ЕДИНИЦУ],"") -> 13.96 ₽ | M8: =расчеты!L7 -> 80
D9: Кабачки | E9: Рынок | F9: Фрукты и овощи | G9: 2 | H9: шт. | I9: 1.50 ₽ | J9: =IFERROR(Список[КОЛ-ВО]*Список[ЦЕНА ЗА ЕДИНИЦУ],"") -> 3.00 ₽
D10: Сельдерей | E10: Продовольственный | F10: Фрукты и овощи | G10: 2 | H10: гроздь | I10: 1.99 ₽ | J10: =IFERROR(Список[КОЛ-ВО]*Список[ЦЕНА ЗА ЕДИНИЦУ],"") -> 3.98 ₽ | M10: =расчеты!M6 -> МОРЕПРОДУКТЫ ИТОГО
D11: Огурцы | E11: Рынок | F11: Фрукты и овощи | G11: 1 | H11: кг | I11: 2.29 ₽ | J11: =IFERROR(Список[КОЛ-ВО]*Список[ЦЕНА ЗА ЕДИНИЦУ],"") -> 2.29 ₽ | M11: =расчеты!L6 -> 109
D12: Грибы | E12: Продовольственный | F12: Фрукты и овощи | G12: 0.5 | H12: кг | I12: 2.25 ₽ | J12: =IFERROR(Список[КОЛ-ВО]*Список[ЦЕНА ЗА ЕДИНИЦУ],"") -> 1.13 ₽ | K12: Крупные портобелло
D13: Молоко | E13: Доставка на дом | F13: Молочные продукты | G13: 2 | H13: л | I13: 3.99 ₽ | J13: =IFERROR(Список[КОЛ-ВО]*Список[ЦЕНА ЗА ЕДИНИЦУ],"") -> 7.98 ₽ | M13: =расчеты!M3 -> ИТОГО НА ПРОЧЕЕ
D14: Сыр | E14: Доставка на дом | F14: Молочные продукты | G14: 1 | H14: кг | I14: 9.99 ₽ | J14: =IFERROR(Список[КОЛ-ВО]*Список[ЦЕНА ЗА ЕДИНИЦУ],"") -> 9.99 ₽ | K14: Разные сорта | M14: =расчеты!L3 -> 0
D15: Яйца | E15: Доставка на дом | F15: Молочные продукты | G15: 2 | H15: десяток | I15: 3.50 ₽ | J15: =IFERROR(Список[КОЛ-ВО]*Список[ЦЕНА ЗА ЕДИНИЦУ],"") -> 7.00 ₽
D16: Творог | E16: Доставка на дом | F16: Молочные продукты | G16: 1 | H16: 300 г | I16: 3.89 ₽ | J16: =IFERROR(Список[КОЛ-ВО]*Список[ЦЕНА ЗА ЕДИНИЦУ],"") -> 3.89 ₽ | M16: =расчеты!M4 -> ИТОГО НА ПРОДУКТЫ
D17: Сметана | E17: Доставка на дом | F17: Молочные продукты | G17: 1 | H17: 200 г | I17: 2.99 ₽ | J17: =IFERROR(Список[КОЛ-ВО]*Список[ЦЕНА ЗА ЕДИНИЦУ],"") -> 2.99 ₽ | M17: =ИтогоПокупки -> 271
D18: Йогурт | E18: Продовольственный | F18: Молочные продукты | G18: 1 | H18: 300 г | I18: 4.99 ₽ | J18: =IFERROR(Список[КОЛ-ВО]*Список[ЦЕНА ЗА ЕДИНИЦУ],"") -> 4.99 ₽ | K18: С медом
D19: Говядина | E19: Рынок | F19: Мясо | G19: 10 | H19: кг | I19: 7.99 ₽ | J19: =IFERROR(Список[КОЛ-ВО]*Список[ЦЕНА ЗА ЕДИНИЦУ],"") -> 79.90 ₽ | K19: Филе
D20: Дикий лосось | E20: Рыбный рынок | F20: Морепродукты | G20: 6 | H20: кг | I20: 8.99 ₽ | J20: =IFERROR(Список[КОЛ-ВО]*Список[ЦЕНА ЗА ЕДИНИЦУ],"") -> 53.94 ₽
D21: Крабовое мясо | E21: Рыбный рынок | F21: Морепродукты | G21: 5 | H21: кг | I21: 10.99 ₽ | J21: =IFERROR(Список[КОЛ-ВО]*Список[ЦЕНА ЗА ЕДИНИЦУ],"") -> 54.95 ₽

Sheet расчеты (hidden)
A1: *** Этот лист должен оставаться скрытым ***
K3: =SUM(Список[ИТОГО])-SUM(K6:K9) -> 0.00 ₽ | L3: =ROUND(K3,0) -> 0 ₽ | M3: ИТОГО НА ПРОЧЕЕ
L4: =ROUNDUP(SUM(Список[ИТОГО]),0) -> 271 ₽ | M4: ИТОГО НА ПРОДУКТЫ
E6: =IFERROR(INDEX(Список[КАТЕГОРИЯ],MATCH(,COUNTIF($E$5:E5,Список[КАТЕГОРИЯ]),)),"") -> Фрукты и овощи | F6: =SUMIFS(Список[ИТОГО],Список[КАТЕГОРИЯ],E6) -> 44.875 | G6: =F6+ROW()/1000000 -> 44.875006 | H6: =LARGE($G$6:$G$21,1) -> 108.890009 | I6: =MATCH(H6,$G$6:$G$21,0) -> 4 | J6: =INDEX($E$6:$E$21,$I6) -> Морепродукты | K6: =INDEX($F$6:$F$21,$I6) -> 108.89 ₽ | L6: =ROUND(K6,0) -> 109 ₽ | M6: =UPPER(J6) & " ИТОГО" -> МОРЕПРОДУКТЫ ИТОГО
E7: =IFERROR(INDEX(Список[КАТЕГОРИЯ],MATCH(,COUNTIF($E$5:E6,Список[КАТЕГОРИЯ]),)),"") -> Молочные продукты | F7: =SUMIFS(Список[ИТОГО],Список[КАТЕГОРИЯ],E7) -> 36.84 | G7: =F7+ROW()/1000000 -> 36.840007 | H7: =LARGE($G$6:$G$21,2) -> 79.900008 | I7: =MATCH(H7,$G$6:$G$21,0) -> 3 | J7: =INDEX($E$6:$E$21,$I7) -> Мясо | K7: =INDEX($F$6:$F$21,$I7) -> 79.90 ₽ | L7: =ROUND(K7,0) -> 80 ₽ | M7: =UPPER(J7) & " ИТОГО" -> МЯСО ИТОГО
E8: =IFERROR(INDEX(Список[КАТЕГОРИЯ],MATCH(,COUNTIF($E$5:E7,Список[КАТЕГОРИЯ]),)),"") -> Мясо | F8: =SUMIFS(Список[ИТОГО],Список[КАТЕГОРИЯ],E8) -> 79.9 | G8: 79.900008 | H8: =LARGE($G$6:$G$21,3) -> 44.875006 | I8: =MATCH(H8,$G$6:$G$21,0) -> 1 | J8: =INDEX($E$6:$E$21,$I8) -> Фрукты и овощи | K8: =INDEX($F$6:$F$21,$I8) -> 44.88 ₽ | L8: =ROUND(K8,0) -> 45 ₽ | M8: =UPPER(J8) & " ИТОГО" -> ФРУКТЫ И ОВОЩИ ИТОГО
E9: =IFERROR(INDEX(Список[КАТЕГОРИЯ],MATCH(,COUNTIF($E$5:E8,Список[КАТЕГОРИЯ]),)),"") -> Морепродукты | F9: =SUMIFS(Список[ИТОГО],Список[КАТЕГОРИЯ],E9) -> 108.89 | G9: 108.890009 | H9: =LARGE($G$6:$G$21,4) -> 36.840007 | I9: =MATCH(H9,$G$6:$G$21,0) -> 2 | J9: =INDEX($E$6:$E$21,$I9) -> Молочные продукты | K9: =INDEX($F$6:$F$21,$I9) -> 36.84 ₽ | L9: =ROUND(K9,0) -> 37 ₽ | M9: =UPPER(J9) & " ИТОГО" -> МОЛОЧНЫЕ ПРОДУКТЫ ИТОГО
E10: =IFERROR(INDEX(Список[КАТЕГОРИЯ],MATCH(,COUNTIF($E$5:E9,Список[КАТЕГОРИЯ]),)),"") ->  | F10: =SUMIFS(Список[ИТОГО],Список[КАТЕГОРИЯ],E10) -> 0 | G10: 1e-05
E11: =IFERROR(INDEX(Список[КАТЕГОРИЯ],MATCH(,COUNTIF($E$5:E10,Список[КАТЕГОРИЯ]),)),"") ->  | F11: =SUMIFS(Список[ИТОГО],Список[КАТЕГОРИЯ],E11) -> 0 | G11: 1.1e-05
E12: =IFERROR(INDEX(Список[КАТЕГОРИЯ],MATCH(,COUNTIF($E$5:E11,Список[КАТЕГОРИЯ]),)),"") ->  | F12: =SUMIFS(Список[ИТОГО],Список[КАТЕГОРИЯ],E12) -> 0 | G12: 1.2e-05
E13: =IFERROR(INDEX(Список[КАТЕГОРИЯ],MATCH(,COUNTIF($E$5:E12,Список[КАТЕГОРИЯ]),)),"") ->  | F13: =SUMIFS(Список[ИТОГО],Список[КАТЕГОРИЯ],E13) -> 0 | G13: 1.3e-05
E14: =IFERROR(INDEX(Список[КАТЕГОРИЯ],MATCH(,COUNTIF($E$5:E13,Список[КАТЕГОРИЯ]),)),"") ->  | F14: =SUMIFS(Список[ИТОГО],Список[КАТЕГОРИЯ],E14) -> 0 | G14: 1.4e-05
E15: =IFERROR(INDEX(Список[КАТЕГОРИЯ],MATCH(,COUNTIF($E$5:E14,Список[КАТЕГОРИЯ]),)),"") ->  | F15: =SUMIFS(Список[ИТОГО],Список[КАТЕГОРИЯ],E15) -> 0 | G15: 1.5e-05
E16: =IFERROR(INDEX(Список[КАТЕГОРИЯ],MATCH(,COUNTIF($E$5:E15,Список[КАТЕГОРИЯ]),)),"") ->  | F16: =SUMIFS(Список[ИТОГО],Список[КАТЕГОРИЯ],E16) -> 0 | G16: 1.6e-05
E17: =IFERROR(INDEX(Список[КАТЕГОРИЯ],MATCH(,COUNTIF($E$5:E16,Список[КАТЕГОРИЯ]),)),"") ->  | F17: =SUMIFS(Список[ИТОГО],Список[КАТЕГОРИЯ],E17) -> 0 | G17: 1.7e-05
E18: =IFERROR(INDEX(Список[КАТЕГОРИЯ],MATCH(,COUNTIF($E$5:E17,Список[КАТЕГОРИЯ]),)),"") ->  | F18: =SUMIFS(Список[ИТОГО],Список[КАТЕГОРИЯ],E18) -> 0 | G18: 1.8e-05
E19: =IFERROR(INDEX(Список[КАТЕГОРИЯ],MATCH(,COUNTIF($E$5:E18,Список[КАТЕГОРИЯ]),)),"") ->  | F19: =SUMIFS(Список[ИТОГО],Список[КАТЕГОРИЯ],E19) -> 0 | G19: 1.9e-05
E20: =IFERROR(INDEX(Список[КАТЕГОРИЯ],MATCH(,COUNTIF($E$5:E19,Список[КАТЕГОРИЯ]),)),"") ->  | F20: =SUMIFS(Список[ИТОГО],Список[КАТЕГОРИЯ],E20) -> 0 | G20: 2e-05
E21: =IFERROR(INDEX(Список[КАТЕГОРИЯ],MATCH(,COUNTIF($E$5:E20,Список[КАТЕГОРИЯ]),)),"") ->  | F21: =SUMIFS(Список[ИТОГО],Список[КАТЕГОРИЯ],E21) -> 0 | G21: 2.1e-05
